bitfinex/quotes_ETHUSD_20241120
["timestamp","ask_amount","ask_price","bid_price","bid_amount"]
[1732068801622,0.7565,3087.8,3087.2,0.04157455]
[1732068801830,0.7565,3087.8,3086.7,0.0507546]
[1732068802008,0.7565,3087.8,3087.3,0.04157455]
[1732068802198,0.7565,3087.8,3087.0,0.05075464]
[1732068802402,0.7565,3087.8,3087.4,0.04157455]
[1732068802704,0.7565,3087.8,3087.5,0.04157455]
[1732068802902,0.7565,3087.8,3087.0,0.05075464]
[1732068803105,0.7565,3087.8,3087.1,0.04157455]
[1732068803536,0.7565,3087.8,3086.9,3.0]
[1732068803735,0.7565,3087.8,3087.2,0.041568]
[1732068803898,0.7565,3087.8,3086.9,3.30507547]
[1732068804244,0.7565,3087.8,3087.0,0.041568]
[1732068804400,0.7565,3087.8,3087.0,0.09233598]
[1732068805225,0.7565,3087.8,3087.0,0.041568]
[1732068806139,0.7565,3087.8,3086.6,0.84485666]
[1732068806339,0.7565,3087.8,3087.1,0.04157528]
[1732068806553,0.7565,3087.8,3086.9,3.0]
[1732068806837,0.7565,3087.8,3087.2,0.04157528]
[1732068806994,0.7565,3087.8,3086.6,0.84485666]
[1732068807338,0.7565,3087.8,3086.9,3.0]
[1732068807560,0.7565,3087.8,3086.6,0.05075666]
[1732068807561,0.7565,3087.8,3086.7,0.04157528]
[1732068807840,0.7565,3087.8,3086.8,0.05077476]
[1732068808025,0.7565,3087.8,3086.8,0.09235004]
[1732068808400,0.7565,3087.8,3086.9,3.0]
[1732068808654,0.7565,3087.8,3087.0,0.35999473]
[1732068808945,0.7565,3087.8,3087.1,0.04158258]
[1732068810815,0.7565,3087.8,3086.5,1.1001]
[1732068810997,0.7565,3087.8,3087.2,0.04158258]
[1732068811195,0.7565,3087.8,3086.5,1.1508711]
[1732068811446,0.7565,3087.8,3087.3,0.0415753]
[1732068811599,0.7565,3087.8,3086.6,0.0507711]
[1732068811799,0.08097279,3088.7,3086.6,0.0507711]
[1732068811800,0.8301,3087.7,3086.6,0.05077113]
[1732068811999,0.8301,3087.7,3086.7,0.04157821]
[1732068812235,0.8301,3087.7,3086.8,0.05078373]
[1732068812399,0.8301,3087.7,3086.7,0.04157821]
[1732068812612,0.8301,3087.7,3086.4,0.05078373]
[1732068812832,0.8301,3087.7,3086.8,0.04158913]
[1732068813006,0.8301,3087.7,3086.4,0.05078373]
[1732068813340,0.8301,3087.7,3086.6,0.3226]
[1732068813542,0.8301,3087.7,3086.6,0.37338824]
[1732068814035,0.8301,3087.7,3086.7,0.04158913]
[1732068816129,0.08097896,3087.6,3086.7,0.04158913]
[1732068816408,0.8301,3087.5,3086.4,0.05078829]
[1732068816743,0.8301,3087.5,3086.5,0.33733883]
[1732068816928,0.8301,3087.5,3086.5,0.37892796]
[1732068818445,0.8301,3087.5,3086.5,0.04158913]
[1732068818814,0.8301,3087.5,3086.6,0.05079391]
[1732068819325,0.8301,3087.5,3086.7,0.04161605]
[1732068819531,0.8301,3087.5,3086.8,0.05077641]
[1732068819729,0.8301,3087.5,3086.7,0.04161605]
[1732068819730,0.8301,3087.5,3086.7,0.05077062]
[1732068820041,0.8301,3087.5,3086.8,0.04161605]
[1732068820214,0.8301,3087.5,3086.9,0.05077063]
[1732068820416,0.8301,3087.5,3086.9,0.37337063]
[1732068820667,0.8301,3087.5,3086.9,3.37337063]
[1732068820829,0.8301,3087.5,3087.0,0.04161605]
[1732068821030,0.8301,3087.5,3087.1,0.34149867]
[1732068821629,0.8301,3087.5,3087.2,0.04161605]
[1732068822567,0.8301,3087.5,3086.9,0.37337063]
[1732068822860,0.8301,3087.5,3087.3,0.04161605]
[1732068823170,0.8301,3087.5,3087.4,0.04161605]
[1732068823520,0.8301,3087.5,3086.9,3.37337063]
[1732068823722,0.8301,3087.5,3087.0,0.04133605]
[1732068826438,0.8301,3087.5,3087.0,3.04133605]
[1732068826765,0.8301,3087.5,3087.0,0.04133605]
[1732068826921,0.8301,3087.5,3087.1,0.3041336]
[1732068827361,0.8301,3087.5,3087.2,0.04133605]
[1732068827789,0.8301,3087.5,3087.0,0.3226]
[1732068828315,0.8301,3087.5,3087.1,0.04133605]
[1732068830796,0.8123,3088.6,3087.1,0.05076425]
[1732068831007,0.8123,3088.6,3087.2,0.09208024]
[1732068831364,0.08096052,3088.5,3087.2,0.09208024]
[1732068831683,0.8123,3088.4,3087.2,0.09208024]
[1732068832000,0.8123,3088.2,3087.2,0.04133605]
[1732068832215,0.08096052,3088.1,3087.2,0.09208009]
[1732068832411,0.08096052,3088.1,3087.2,0.05074404]
[1732068832709,0.08096052,3088.1,3087.3,0.04131058]
[1732068832867,0.08096052,3088.1,3087.0,1.15064404]
[1732068833095,0.8123,3088.2,3087.1,0.04131058]
[1732068833374,0.8123,3088.2,3087.2,0.05074406]
[1732068833886,0.8123,3088.2,3087.3,0.04131058]
[1732068834215,0.8123,3088.2,3087.4,0.05074409]
[1732068834513,0.8123,3088.2,3087.5,3.7516]
[1732068834746,0.8123,3088.2,3087.6,0.4309593]
[1732068834946,0.8123,3088.2,3087.6,0.0919918]
[1732068835314,0.8123,3088.2,3087.6,0.4145918]
[1732068836429,0.8123,3088.2,3087.6,3.4145918]
[1732068837148,0.8123,3088.2,3087.6,0.4145918]
[1732068837308,0.8123,3088.2,3087.6,0.36386691]
[1732068838754,0.8123,3088.2,3087.6,0.04126691]
[1732068838934,0.8123,3088.2,3087.6,0.35046683]
[1732068839136,0.8123,3088.2,3087.6,0.04126691]
[1732068840346,0.8123,3088.2,3087.6,0.09199915]
[1732068840552,0.8123,3088.2,3087.6,0.41459915]
[1732068845163,0.8123,3089.3,3087.6,0.41459915]
[1732068845164,0.85365208,3089.2,3087.7,0.7516]
[1732068845375,0.01,3090.0,3087.7,0.7516]
[1732068845376,0.7727,3089.0,3087.8,0.37330281]
[1732068845688,0.7727,3089.0,3088.0,0.3226]
[1732068845898,0.7727,3089.0,3088.0,0.27328349]
[1732068846320,0.7727,3089.0,3088.2,0.97556698]
[1732068846602,0.7727,3089.6,3088.6,0.22396698]
[1732068846911,0.7727,3089.6,3088.8,0.22396698]
[1732068847587,0.7727,3089.6,3088.9,0.04113234]
[1732068848285,0.7727,3089.6,3088.7,0.7516]
[1732068848485,0.7727,3089.6,3089.0,0.04113234]
[1732068848692,0.7727,3089.6,3088.7,0.7516]
[1732068848876,0.7727,3089.6,3089.1,0.04113234]
[1732068849201,0.7727,3089.6,3089.2,0.04113234]
[1732068849646,0.7727,3089.6,3088.7,0.7516]
[1732068849905,0.7727,3089.6,3089.3,0.04113234]
[1732068850070,0.7727,3089.6,3088.7,0.7516]
[1732068850605,0.7727,3089.6,3088.9,3.0]
[1732068850766,0.8232,3090.4,3089.0,0.30411323]
[1732068850967,0.8232,3090.4,3089.1,0.7801]
[1732068851272,0.8232,3090.4,3089.2,3.0]
[1732068851468,0.8232,3090.4,3089.1,0.8211611]
[1732068851819,0.8232,3090.4,3089.2,0.0410611]
[1732068852179,0.8232,3090.4,3089.4,0.7801]
[1732068852376,0.8232,3090.4,3089.5,3.0]
[1732068852600,0.8232,3090.4,3089.5,0.41905802]
[1732068852831,0.8232,3090.4,3089.5,0.04104802]
[1732068852979,0.90410574,3090.3,3089.5,0.04104802]
[1732068853181,0.90410574,3090.3,3088.9,0.7801]
[1732068853822,0.90410574,3090.3,3089.0,3.04103712]
[1732068854022,0.8232,3090.3,3089.0,0.04103712]
[1732068854893,0.8232,3090.3,3089.0,0.05103712]
[1732068855097,0.8232,3090.3,3089.3,3.0]
[1732068855403,0.8232,3090.3,3089.4,0.04104294]
[1732068855576,0.8232,3090.3,3089.4,0.82114294]
[1732068856517,0.8232,3090.3,3089.4,0.04104294]
[1732068856684,0.8232,3090.1,3089.4,0.04104294]
[1732068857026,0.8232,3090.1,3089.0,0.01]
[1732068857027,0.8232,3090.1,3089.5,0.04087935]
[1732068857553,0.8232,3090.1,3089.6,0.04087935]
[1732068857852,0.8232,3090.1,3088.9,0.01]
[1732068858154,0.8232,3090.1,3089.0,0.04087935]
[1732068861620,0.08090752,3090.0,3089.0,3.04087935]
[1732068861920,0.8232,3090.9,3089.0,3.04087935]
[1732068861921,0.8232,3090.4,3089.0,0.04087935]
[1732068862160,0.8232,3090.2,3088.8,0.7801]
[1732068862336,0.8232,3090.0,3089.0,3.0]
[1732068862722,0.8232,3090.0,3089.1,0.04089025]
[1732068862923,0.8232,3090.0,3089.0,3.0]
[1732068863139,0.8232,3090.0,3089.1,0.3]
[1732068863350,0.8232,3090.0,3089.1,0.04089025]
[1732068863545,0.8232,3090.0,3088.8,0.7801]
[1732068863757,0.8232,3090.0,3088.8,1.1027]
[1732068863916,0.8232,3090.0,3088.9,0.04089388]
[1732068865781,0.8232,3090.0,3089.2,3.0]
[1732068865940,0.8232,3090.0,3089.3,0.3]
[1732068866136,0.8232,3090.0,3089.2,3.0]
[1732068866339,0.8232,3090.0,3089.3,0.04089388]
[1732068866537,0.8232,3090.0,3089.2,0.56]
[1732068866778,0.8232,3090.0,3089.3,0.04089388]
[1732068867581,0.8232,3090.0,3089.5,3.0]
[1732068867781,0.8232,3090.0,3089.3,0.04089388]
[1732068867782,0.8232,3090.0,3089.6,0.3]
[1732068868086,0.8232,3090.0,3089.6,0.04072278]
[1732068868599,0.8232,3090.0,3089.7,0.04072278]
[1732068868766,0.8232,3090.0,3089.5,3.0]
[1732068869085,0.8232,3090.0,3089.6,0.04072278]
[1732068869580,0.8232,3090.0,3089.1,0.7814]
[1732068869755,0.8232,3090.0,3089.7,0.04072278]
[1732068869954,0.8232,3090.0,3089.1,0.7714]
[1732068870270,0.8232,3090.0,3089.2,0.04072278]
[1732068870654,0.8232,3090.0,3088.6,1.114]
[1732068870869,0.8232,3090.0,3089.3,0.04071479]
[1732068871185,0.8232,3090.0,3088.6,1.2151983]
[1732068871492,0.8232,3090.0,3088.7,0.3226]
[1732068871651,0.8232,3090.0,3088.7,0.36331479]
[1732068872638,0.8232,3090.0,3088.9,3.0]
[1732068872783,0.8232,3090.0,3088.9,3.33633148]
[1732068873202,0.8232,3090.0,3089.0,0.04071479]
[1732068874778,0.8232,3090.0,3088.9,3.0]
[1732068874972,0.8232,3090.0,3088.7,0.3226]
[1732068875416,0.8232,3090.0,3088.8,0.04073368]
[1732068875705,0.8232,3090.0,3088.9,3.0]
[1732068875894,0.8232,3090.0,3088.9,3.33633337]
[1732068876308,0.8232,3090.0,3089.0,0.04073368]
[1732068878095,0.8232,3090.0,3089.4,3.0]
[1732068878287,0.8232,3090.0,3089.1,0.7814]
[1732068878288,0.8232,3090.0,3089.2,0.8726]
[1732068878542,0.8232,3090.0,3089.5,0.04076272]
[1732068878727,0.8232,3090.0,3089.2,0.01]
[1732068878892,0.8232,3090.0,3089.6,3.04076127]
[1732068879101,0.8232,3090.0,3089.2,0.01]
[1732068879323,0.8232,3090.0,3089.7,0.04072712]
[1732068879488,0.8232,3090.0,3089.1,0.7714]
[1732068879489,0.8232,3090.0,3089.1,0.8706458]
[1732068879689,0.8232,3090.0,3089.8,0.04072712]
[1732068879916,0.8232,3090.0,3089.4,3.0]
[1732068880135,0.8232,3090.0,3089.4,3.3]
[1732068880345,0.8232,3090.0,3089.5,0.03933528]
[1732068880955,0.8232,3090.0,3089.4,3.0]
[1732068881158,0.8232,3090.0,3088.8,1.23812604]
[1732068881468,0.8232,3090.0,3089.4,3.0]
[1732068881638,0.8232,3090.0,3089.4,3.3]
[1732068881816,0.8232,3090.0,3089.5,0.03933962]
[1732068882750,0.8232,3090.0,3089.4,3.0]
[1732068883063,0.8232,3090.0,3089.5,0.03934756]
[1732068883420,0.8232,3090.0,3089.1,1.1366]
[1732068883625,0.8232,3090.0,3089.6,0.03934756]
[1732068883958,0.8232,3090.0,3089.6,0.30393476]
[1732068884175,0.8232,3090.0,3089.7,0.03934756]
[1732068884325,0.7771,3090.8,3089.7,0.03934756]
[1732068884525,0.7771,3090.8,3089.6,0.8184]
[1732068884958,0.7771,3090.8,3089.7,0.03934756]
[1732068886345,0.7771,3091.8,3090.2,3.0]
[1732068886542,0.7771,3091.8,3090.3,4.1184]
[1732068886822,0.09087756,3092.6,3090.3,1.15770857]
[1732068886823,0.85797402,3091.7,3090.3,1.15770857]
[1732068887141,0.85797402,3091.7,3090.3,3.85770857]
[1732068887384,0.85797402,3091.7,3090.3,0.85770857]
[1732068887587,0.85797402,3091.7,3090.3,0.03930857]
[1732068887885,0.85797402,3091.7,3090.3,3.0]
[1732068888139,0.85797402,3091.7,3090.4,0.03930857]
[1732068888968,0.85797402,3091.7,3090.3,3.0]
[1732068889305,0.7771,3091.5,3090.4,0.03927176]
[1732068889472,0.7771,3091.3,3090.4,0.03927176]
[1732068889666,0.85798969,3091.2,3089.2,3.8184]
[1732068889871,0.85798969,3091.2,3089.5,0.01]
[1732068890093,0.85798969,3091.2,3089.3,1.19169617]
[1732068890094,0.85798969,3091.2,3089.3,1.24096793]
[1732068890284,0.7771,3091.2,3089.4,0.50593679]
[1732068890483,0.85798969,3091.1,3089.4,0.55520855]
[1732068891216,0.85798969,3091.1,3089.4,0.54520855]
[1732068892176,0.85798969,3091.1,3089.4,0.03927176]
[1732068892722,0.85798969,3091.1,3089.1,3.07]
[1732068893219,0.85798969,3091.1,3089.2,3.03925662]
[1732068895138,0.55,3091.0,3089.2,3.03925662]
[1732068895301,0.7771,3090.9,3089.2,3.03925662]
[1732068895623,0.63089751,3091.0,3089.3,0.61092566]
[1732068895624,0.85800143,3090.8,3089.3,0.61092566]
[1732068896202,0.85800143,3090.8,3089.1,3.07]
[1732068896203,0.55,3090.7,3089.4,3.03925662]
[1732068896539,0.85800915,3090.6,3089.4,0.03925662]
[1732068896928,0.85800915,3090.6,3088.6,0.91892116]
[1732068897336,0.85800915,3090.6,3088.7,0.03801452]
[1732068897702,0.85800915,3090.6,3088.7,0.36061452]
[1732068898656,0.85800915,3090.6,3089.1,3.0]
[1732068898841,0.85800915,3090.6,3088.8,0.20125235]
[1732068899045,0.85800915,3090.6,3089.1,3.0]
[1732068899347,0.7771,3090.6,3089.1,3.0]
[1732068899645,0.7771,3090.6,3089.2,0.03801452]
[1732068900539,0.7771,3090.6,3089.3,0.56]
[1732068900950,0.7771,3090.6,3089.3,0.01]
[1732068901253,0.7771,3090.6,3089.4,0.03801452]
[1732068901405,0.7771,3090.6,3089.5,0.55]
[1732068901714,0.7771,3090.6,3089.7,3.0]
[1732068901922,0.7771,3090.6,3089.8,3.38184]
[1732068902226,0.7771,3090.6,3089.8,0.03801452]
[1732068902461,0.7771,3090.6,3089.8,3.03801452]
[1732068902853,0.7771,3090.6,3089.8,0.03801452]
[1732068903045,0.7771,3090.6,3089.6,1.17536168]
[1732068903383,0.7771,3090.6,3089.9,0.03801452]
[1732068903596,0.7771,3090.6,3089.7,0.55]
[1732068903880,0.7771,3090.6,3089.8,0.16753617]
[1732068904078,0.7771,3090.6,3089.8,0.20555069]
[1732068904638,0.7771,3090.6,3089.9,3.0]
[1732068904955,0.7771,3090.6,3089.8,0.20555069]
[1732068905140,0.7771,3090.6,3089.9,3.0]
[1732068905342,0.7771,3090.6,3090.0,0.32055507]
[1732068905987,0.7771,3090.6,3090.1,0.03801452]
[1732068906343,0.7771,3090.6,3089.9,3.0]
[1732068906789,0.7771,3090.6,3090.0,0.03801452]
[1732068907286,0.7771,3090.6,3090.1,0.03798509]
[1732068907580,0.7771,3090.6,3090.1,0.30379851]
[1732068907748,0.7771,3090.6,3090.2,0.03798509]
[1732068908993,0.7771,3090.6,3089.9,3.0]
[1732068909147,0.7771,3090.6,3090.3,0.03798509]
[1732068909342,0.7771,3090.6,3089.5,0.3226]
[1732068909546,0.7771,3090.6,3090.4,0.03798509]
[1732068909779,0.7771,3090.6,3089.5,0.3226]
[1732068910028,0.7771,3090.6,3089.5,0.66610587]
[1732068910316,0.7771,3090.6,3089.9,3.0]
[1732068910474,0.7771,3090.6,3089.6,0.03798509]
[1732068910674,0.7771,3090.6,3089.3,0.3226]
[1732068910993,0.7771,3090.6,3089.5,0.3226]
[1732068911307,0.7771,3090.6,3089.7,3.0]
[1732068911667,0.7771,3090.6,3089.5,0.3226]
[1732068911868,0.84270017,3090.5,3089.8,0.03798509]
[1732068912068,0.7618,3090.5,3088.9,0.42109265]
[1732068912805,0.7618,3090.5,3089.0,0.03796643]
[1732068913731,0.7618,3090.5,3089.1,0.34690591]
[1732068913884,0.7618,3090.5,3089.1,0.66950591]
[1732068914087,0.7618,3090.5,3089.2,0.817]
[1732068914306,0.7618,3090.5,3089.3,0.3226]
[1732068914650,0.7618,3090.5,3089.7,3.0]
[1732068914787,0.7618,3090.5,3089.8,0.3]
[1732068915117,0.7618,3090.5,3089.9,0.03798653]
[1732068916022,0.7618,3090.5,3089.5,0.3226]
[1732068916023,0.7618,3090.5,3090.0,0.03797719]
[1732068916230,0.7618,3090.5,3089.5,0.42086136]
[1732068916404,0.7618,3090.5,3090.1,0.03797719]
[1732068916609,0.7618,3090.5,3089.6,3.38826]
[1732068916799,0.7618,3090.5,3089.7,0.03797719]
[1732068917229,0.7618,3090.5,3089.9,3.0]
[1732068917646,0.7618,3090.5,3090.0,0.03796643]
[1732068918403,0.7618,3090.5,3090.1,0.03797793]
[1732068918601,0.7618,3090.5,3089.6,3.0]
[1732068918806,0.7618,3090.5,3089.7,0.03797793]
[1732068919001,0.7618,3090.5,3089.3,0.3226]
[1732068919211,0.7618,3090.5,3089.4,0.78456491]
[1732068919936,0.7618,3090.5,3089.6,3.0]
[1732068920232,0.7618,3090.5,3089.3,0.3226]
[1732068920403,0.7618,3090.5,3089.7,0.03797793]
[1732068920601,0.7578,3090.3,3089.0,3.0]
[1732068920851,0.7578,3090.3,3089.6,3.0]
[1732068920997,0.7578,3090.3,3089.1,0.71003793]
[1732068921711,0.08090107,3090.2,3089.1,0.71003793]
[1732068921898,0.01,3091.0,3089.1,0.71003793]
[1732068921899,0.7578,3090.1,3089.1,0.03797793]
[1732068922096,0.7578,3090.1,3088.8,0.3226]
[1732068922097,0.7578,3090.1,3088.8,3.3326]
[1732068922410,0.7578,3090.1,3088.9,0.77636]
[1732068922635,0.7578,3090.1,3089.0,0.03797793]
[1732068922991,0.7578,3090.1,3089.1,3.7206]
[1732068923292,0.7578,3090.1,3089.2,0.3226]
[1732068923491,0.7578,3090.1,3089.2,0.36057793]
[1732068924105,0.7578,3090.1,3089.3,3.0]
[1732068924397,0.7578,3090.1,3089.2,3.3226]
[1732068924722,0.7578,3090.1,3089.3,0.67206]
[1732068924926,0.7578,3090.1,3089.3,0.71003793]
[1732068926751,0.7578,3090.1,3089.4,0.7623]
[1732068926952,0.7578,3090.1,3089.6,0.3226]
[1732068927115,0.7578,3090.1,3089.4,0.7623]
[1732068927116,0.7578,3090.1,3089.7,3.3226]
[1732068927314,0.8089,3091.2,3089.7,3.36057793]
[1732068927549,0.8089,3091.2,3089.7,0.69283793]
[1732068929344,0.8089,3091.0,3089.7,0.69283793]
[1732068929668,0.01,3091.8,3089.7,0.69283793]
[1732068929669,0.88978789,3090.9,3089.7,0.69283793]
[1732068929863,0.8089,3090.9,3089.7,0.69283793]
[1732068930346,0.8089,3090.9,3089.7,0.79081898]
[1732068930726,0.8089,3090.9,3090.0,3.3226]
[1732068930940,0.8089,3090.9,3090.0,0.3226]
[1732068931172,0.8089,3090.9,3090.1,0.03800592]
[1732068932177,0.8089,3090.9,3090.1,0.37406651]
[1732068932325,0.8089,3090.9,3090.3,3.0]
[1732068932552,0.8089,3090.9,3090.1,0.03800592]
[1732068932756,0.8089,3090.9,3090.1,0.3226]
[1732068933049,0.8089,3090.9,3090.2,4.12289587]
[1732068936183,0.8089,3090.9,3090.3,0.8726]
[1732068936389,0.8089,3090.9,3090.6,3.0]
[1732068936553,0.8089,3090.9,3090.5,3.0]
[1732068936883,0.8089,3090.9,3090.6,0.03795928]
[1732068938000,0.8089,3090.9,3089.4,0.10041261]
[1732068938001,0.08088505,3090.8,3089.5,0.3226]
[1732068938294,0.08088505,3090.8,3089.4,0.37596168]
[1732068938295,0.8089,3090.7,3089.4,0.10137647]
[1732068938507,0.08090233,3090.6,3089.0,0.37596168]
[1732068938804,0.8089,3090.5,3089.0,0.37596168]
[1732068939096,0.88980365,3090.4,3089.0,0.37596168]
[1732068939308,0.8089,3090.4,3089.0,0.37596168]
[1732068939674,0.8089,3090.4,3088.7,1.0849]
[1732068939675,0.7602,3090.2,3088.6,0.3226]
[1732068939859,0.7602,3090.0,3088.6,0.69866928]
[1732068940556,0.7602,3089.8,3088.6,0.69866928]
[1732068940873,0.7602,3089.8,3088.6,0.3226]
[1732068941395,0.7602,3089.8,3089.0,3.0]
[1732068942661,0.7602,3089.8,3088.6,0.3226]
[1732068942958,0.7602,3089.8,3088.4,0.7661]
[1732068943158,0.7602,3089.8,3088.5,0.37596168]
[1732068944101,0.7602,3089.6,3088.2,0.55]
[1732068944460,0.7602,3089.6,3088.2,0.65020431]
[1732068944856,0.7602,3089.4,3088.2,0.1792266]
[1732068945061,0.84112845,3089.3,3087.2,0.7561]
[1732068945265,0.84112845,3089.3,3087.2,1.13206168]
[1732068945500,0.84112845,3089.3,3087.3,0.37596168]
[1732068946107,0.7602,3089.1,3087.3,0.37596168]
[1732068946270,0.55,3089.2,3087.3,0.37596168]
[1732068946271,0.7602,3088.9,3087.3,0.37596168]
[1732068946460,0.55,3089.2,3087.3,0.37596168]
[1732068946461,0.7602,3088.7,3087.3,0.37596168]
[1732068946661,0.7602,3088.5,3087.3,0.37596168]
[1732068946860,0.7602,3088.3,3087.4,0.03665024]
[1732068947457,0.55,3089.2,3086.8,0.37596168]
[1732068947458,0.84115457,3088.2,3086.8,0.37596168]
[1732068947737,0.7602,3088.2,3087.5,0.03665024]
[1732068948040,0.7602,3088.2,3086.8,0.37596168]
[1732068948403,0.7602,3088.2,3086.9,0.03665024]
[1732068948724,0.7602,3088.0,3086.9,0.03665024]
[1732068949305,0.7602,3088.0,3087.3,3.0]
[1732068950040,0.7602,3088.0,3087.4,0.03684344]
[1732068950398,0.7602,3088.0,3087.5,0.03706536]
[1732068950843,0.7602,3088.0,3087.5,0.30370654]
[1732068951046,0.7602,3088.0,3087.6,0.03706536]
[1732068951239,0.72395238,3088.0,3087.6,0.03706536]
[1732068951451,0.72395238,3088.0,3087.7,0.03706536]
[1732068951657,0.72395238,3088.0,3087.5,3.0]
[1732068951816,0.72395238,3088.0,3087.8,0.03706536]
[1732068952016,0.72395238,3088.0,3087.5,3.0]
[1732068952210,0.72395238,3088.0,3087.6,0.03706536]
[1732068952914,0.72395238,3088.0,3087.5,3.0]
[1732068953118,0.72395238,3088.0,3087.7,0.03706536]
[1732068953371,0.72395238,3088.0,3087.6,0.3]
[1732068953524,0.72395238,3088.0,3087.8,0.03706536]
[1732068953722,0.72395238,3088.0,3086.4,0.37596168]
[1732068954011,0.72395238,3088.0,3087.9,0.03704308]
[1732068954235,0.72395238,3088.0,3087.3,3.0]
[1732068954438,0.72395238,3088.0,3087.4,0.03704308]
[1732068955634,0.72395238,3088.0,3086.4,0.47804652]
[1732068955956,0.72395238,3088.0,3087.1,3.0]
[1732068956133,0.72395238,3088.0,3086.5,0.03704308]
[1732068956464,0.72395238,3088.0,3087.1,3.0]
[1732068956671,0.72395238,3088.0,3087.2,0.3]
[1732068957166,0.72395238,3088.0,3087.3,0.03704308]
[1732068957667,0.72395238,3088.0,3086.6,0.55]
[1732068957968,0.72395238,3088.0,3087.4,0.03704308]
[1732068958165,0.7602,3087.8,3087.4,0.03704308]
[1732068958325,0.7602,3087.8,3086.6,0.34880465]
[1732068958526,0.7602,3087.8,3087.5,0.03704308]
[1732068958837,0.7602,3087.8,3086.4,0.42468484]
[1732068959053,0.7602,3087.8,3086.5,0.03706464]
[1732068961842,0.84116892,3087.7,3086.5,0.03706464]
[1732068962366,0.84116892,3087.7,3085.6,0.01]
[1732068962367,0.55,3087.6,3085.6,0.37596168]
[1732068962535,0.10096892,3087.7,3085.6,0.10035435]
[1732068962536,0.55,3087.4,3085.6,0.10035435]
[1732068962737,0.7602,3087.2,3085.7,0.03706464]
[1732068963096,0.56,3086.9,3085.3,0.46904136]
[1732068963393,0.56,3086.9,3085.8,0.03706464]
[1732068963394,0.7602,3086.6,3085.8,0.03706464]
[1732068963532,0.01,3086.7,3085.3,0.09307968]
[1732068963533,0.8412218,3086.5,3085.3,0.09307968]
[1732068966235,0.8412218,3086.5,3085.4,0.03706464]
[1732068966468,0.7602,3086.5,3085.4,0.03706464]
[1732068966673,0.7602,3086.3,3085.3,0.09307968]
[1732068967217,0.7602,3086.3,3085.4,0.03706464]
[1732068967367,0.7602,3086.3,3085.5,0.31301443]
[1732068967770,0.7602,3086.3,3085.6,0.03706464]
[1732068968221,0.7602,3086.3,3085.4,3.0]
[1732068968734,0.7602,3086.1,3085.5,0.03706464]
[1732068968874,0.55,3086.8,3086.6,7.92878488]
[1732068969213,0.55,3086.6,3085.3,0.09307968]
[1732068969412,0.08102163,3086.5,3085.3,0.09307968]
[1732068969583,0.55,3086.4,3085.3,0.09307968]
[1732068969785,0.08102583,3086.3,3085.3,0.09307968]
[1732068971004,0.0810161,3086.3,3085.4,0.03722364]
[1732068971203,0.01,3086.8,3085.3,0.09307968]
[1732068971452,0.55,3086.7,3085.5,0.03722364]
[1732068971627,0.55,3086.7,3085.4,0.03670958]
[1732068971628,0.55,3086.5,3085.4,0.03670958]
[1732068971829,0.55,3086.3,3085.3,0.09307968]
[1732068972142,0.83613043,3086.2,3085.5,0.03670958]
[1732068972355,0.83613043,3086.2,3085.3,0.09307968]
[1732068972706,0.55,3086.1,3085.3,0.09307968]
[1732068973052,0.7551,3085.9,3085.3,0.09307968]
[1732068973256,0.56,3086.4,3085.3,0.09307968]
[1732068973257,0.55,3085.7,3085.3,0.09307968]
[1732068973452,0.83614597,3085.6,3085.3,0.09307968]
[1732068975710,0.83614597,3085.6,3085.4,0.03670958]
[1732068976010,0.55,3086.4,3085.3,0.09307968]
[1732068976213,5.95608,3086.5,3085.5,0.03670958]
[1732068976214,0.129539,3085.9,3085.5,0.03670958]
[1732068976413,0.03218361,3085.9,3085.5,0.03670958]
[1732068976708,0.03218361,3085.9,3085.3,0.09307968]
[1732068976910,3.24066,3085.8,3085.3,0.09307968]
[1732068977122,0.129523,3086.4,3085.1,0.005]
[1732068977123,0.35946797,3085.7,3085.1,0.005]
[1732068977327,3.24087,3085.6,3085.1,0.005]
[1732068977623,0.03218361,3085.5,3085.1,0.005]
[1732068978154,3.27314361,3085.5,3083.7,0.01]
[1732068978338,12.08731436,3085.4,3082.8,0.01]
[1732068978543,3.24139,3085.1,3082.8,0.07486003]
[1732068978770,3.27368361,3085.0,3082.8,0.07486003]
[1732068978915,0.7402,3084.9,3083.1,0.01]
[1732068979117,0.7402,3084.7,3082.8,0.07486003]
[1732068979361,0.03218361,3084.8,3082.8,0.07486003]
[1732068979362,0.03218361,3084.6,3082.8,0.06486003]
[1732068979516,3.33540197,3084.6,3082.6,0.10276176]
[1732068979712,0.3492,3084.3,3082.6,0.10276176]
[1732068979953,0.3492,3084.1,3082.5,0.01]
[1732068980256,0.3492,3083.9,3082.7,0.01]
[1732068980452,8.76,3084.7,3082.7,0.01]
[1732068980453,0.3492,3083.7,3082.7,0.01]
[1732068980653,0.7551,3083.5,3082.1,0.08487415]
[1732068980840,0.03218361,3083.4,3082.8,0.03172812]
[1732068981029,0.03218361,3083.4,3082.1,0.08487415]
[1732068981232,0.03218361,3083.4,3082.1,0.02]
[1732068981464,0.7551,3083.3,3082.2,0.03172812]
[1732068981668,0.03218361,3083.2,3082.2,0.03172812]
[1732068982160,0.7551,3083.3,3082.7,0.01]
[1732068982333,0.7551,3084.0,3082.8,0.311]
[1732068982656,0.7551,3084.0,3082.8,0.01]
[1732068983035,0.7551,3084.0,3083.1,3.01]
[1732068983226,0.7551,3084.0,3083.2,3.55]
[1732068983426,0.7551,3084.0,3083.4,0.55]
[1732068983653,0.03218361,3085.1,3083.4,0.55]
[1732068983654,0.7551,3085.0,3083.5,0.01]
[1732068983858,0.03218361,3084.9,3083.5,3.01]
[1732068984057,0.03218361,3084.9,3083.7,0.01]
[1732068984238,0.7551,3085.0,3083.9,0.01]
[1732068984446,0.7551,3085.0,3084.1,0.55]
[1732068984638,0.03218361,3084.9,3084.1,0.55]
[1732068984852,0.03218361,3084.9,3084.3,0.55]
[1732068985257,0.7551,3085.0,3084.1,0.55]